fUST/lending_fUST_20250828
["ID","MTS","AMOUNT","RATE_DAILY","PERIOD"]
[381800360,1756353060704,-172.974853,0.00020969,2]
[381800361,1756353060714,-1496.32,0.00020969,2]
[381800362,1756353060725,-480.0,0.00020969,2]
[381800363,1756353060735,-480.0,0.00020969,2]
[381800364,1756353060746,-151.0,0.00020969,2]
[381800365,1756353060757,-151.0,0.00020969,2]
[381800366,1756353060766,-480.0,0.00020969,2]
[381800367,1756353060776,-480.0,0.00020969,2]
[381800368,1756353060786,-1884.77,0.00020969,2]
[381800369,1756353060796,-785.62,0.00020969,2]
[381800370,1756353060806,-777.18,0.00020969,2]
[381800371,1756353060815,-151.0,0.00020969,2]
[381800372,1756353060827,-480.0,0.00020969,2]
[381800373,1756353060837,-156.32959,0.00020969,2]
[381800374,1756353060847,-480.0,0.00020969,2]
[381800375,1756353060857,-524.15,0.00020969,2]
[381800376,1756353060868,-480.0,0.00020969,2]
[381800377,1756353060878,-1352.82,0.00020969,2]
[381800378,1756353060890,-4048.11,0.00020969,2]
[381800379,1756353060901,-480.0,0.00020969,2]
[381800380,1756353060912,-445.555411,0.00020969,2]
[381800381,1756353060923,-480.0,0.00020969,2]
[381800382,1756353060934,-434.58168498,0.00020969,2]
[381800383,1756353060944,-509.25,0.00020969,2]
[381800384,1756353060955,-2265.57,0.00020969,2]
[381800385,1756353060967,-480.0,0.00020969,2]
[381800386,1756353060978,-480.0,0.00020969,2]
[381800387,1756353060990,-4055.31,0.00020969,2]
[381800388,1756353061002,-622.56,0.00020969,2]
[381800389,1756353061012,-480.0,0.00020969,2]
[381800390,1756353061023,-2855.3,0.00020969,2]
[381800391,1756353061035,-661.55,0.00020969,2]
[381800392,1756353061047,-481.77934948,0.00020969,2]
[381800393,1756353061061,-666.32,0.00020969,2]
[381800394,1756353061073,-1244.01,0.00020969,2]
[381800395,1756353061085,-480.0,0.00020969,2]
[381800396,1756353061097,-717.34,0.00020969,2]
[381800397,1756353061109,-688.085744,0.0002097,2]
[381800398,1756353061120,-688.085744,0.0002097,2]
[381800399,1756353061131,-688.085744,0.0002097,2]
[381800400,1756353061143,-688.085744,0.0002097,2]
[381800401,1756353061155,-151.0,0.0002097,2]
[381800402,1756353061166,-151.0,0.0002097,2]
[381800403,1756353061178,-151.0,0.0002097,2]
[381800404,1756353061191,-151.0,0.0002097,2]
[381800405,1756353061203,-287.940141,0.0002097,2]
[381800406,1756353061214,-287.940141,0.0002097,2]
[381800407,1756353061224,-287.940141,0.0002097,2]
[381800408,1756353061237,-287.940141,0.0002097,2]
[381800409,1756353061248,-151.0,0.0002097,2]
[381800410,1756353061259,-151.0,0.0002097,2]
[381800411,1756353061271,-151.0,0.0002097,2]
[381800412,1756353061283,-5077.95,0.0002097,2]
[381800413,1756353061294,-2634.82,0.0002097,2]
[381800414,1756353061306,-640.18,0.0002097,2]
[381800415,1756353061317,-2440.58,0.0002097,2]
[381800416,1756353061330,-658.91,0.0002097,2]
[381800417,1756353061342,-1786.91,0.0002097,2]
[381800418,1756353061353,-6770.59382517,0.00020972,2]
[381800419,1756353061365,-502.40966076,0.00020973,2]
[381800420,1756353061378,-501.53057373,0.00020973,2]
[381800421,1756353061390,-500.0,0.00020973,2]
[381800422,1756353061402,-500.0,0.00020973,2]
[381800423,1756353061413,-500.0,0.00020973,2]
[381800424,1756353061424,-500.0,0.00020973,2]
[381800425,1756353061435,-502.97496908,0.00020973,2]
[381800426,1756353061447,-500.0,0.00020973,2]
[381800427,1756353061459,-500.0,0.00020973,2]
[381800428,1756353061470,-500.30488028,0.00020973,2]
[381800429,1756353061480,-500.0,0.00020973,2]
[381800430,1756353061492,-500.0,0.00020973,2]
[381800431,1756353061503,-151.0,0.00021,4]
[381800432,1756353061514,-828.99,0.00021016,2]
[381800433,1756353061526,-480.0,0.00021016,2]
[381800434,1756353061537,-1766.5,0.00021016,2]
[381800435,1756353061548,-608.84,0.00021016,2]
[381800436,1756353061559,-1000.0,0.00021021,2]
[381800437,1756353061570,-480.0,0.00021027,2]
[381800438,1756353061580,-480.0,0.00021027,2]
[381800439,1756353061592,-151.0,0.00021027,2]
[381800440,1756353061603,-151.0,0.00021027,2]
[381800441,1756353061614,-151.0,0.00021027,2]
[381800442,1756353061625,-151.0,0.00021027,2]
[381800443,1756353061635,-151.0,0.00021027,2]
[381800444,1756353061646,-151.0,0.00021027,2]
[381800445,1756353061655,-151.0,0.00021027,2]
[381800446,1756353061666,-151.0,0.00021027,2]
[381800447,1756353061676,-151.0,0.00021027,2]
[381800448,1756353061686,-151.0,0.00021027,2]
[381800449,1756353061697,-151.0,0.00021027,2]
[381800450,1756353061707,-151.0,0.00021027,2]
[381800451,1756353061716,-151.0,0.00021027,2]
[381800452,1756353061726,-151.0,0.00021027,2]
[381800453,1756353061736,-251.945454,0.00021027,2]
[381800454,1756353061746,-251.945454,0.00021027,2]
[381800455,1756353061756,-251.945454,0.00021027,2]
[381800456,1756353061766,-251.945454,0.00021027,2]
[381800457,1756353061777,-173.66248618,0.00021051,2]
[381800458,1756353061787,-480.0,0.00021072,2]
[381800459,1756353061798,-480.0,0.00021072,2]
[381800460,1756353061808,-480.0,0.00021072,2]
[381800461,1756353061819,-567.14,0.00021072,2]
[381800462,1756353061830,-480.0,0.00021072,2]
[381800463,1756353061840,-480.0,0.00021072,2]
[381800464,1756353061850,-480.0,0.00021072,2]
[381800465,1756353061860,-480.0,0.00021072,2]
[381800466,1756353061870,-482.08815828,0.00021072,2]
[381800467,1756353061880,-480.0,0.00021072,2]
[381800468,1756353061891,-480.0,0.00021072,2]
[381800469,1756353061901,-486.35,0.00021072,2]
[381800470,1756353061912,-480.0,0.00021072,2]
[381800471,1756353061923,-480.0,0.00021072,2]
[381800472,1756353061934,-480.0,0.00021072,2]
[381800473,1756353061945,-480.0,0.00021072,2]
[381800474,1756353061956,-536.99,0.00021072,2]
[381800475,1756353061967,-197.36357421,0.00021072,2]
[381800476,1756353061979,-480.0,0.00021072,2]
[381800477,1756353061990,-480.0,0.00021072,2]
[381800478,1756353062002,-480.0,0.00021072,2]
[381800479,1756353062013,-1272.18,0.00021072,2]
[381800480,1756353062025,-694.08,0.00021072,2]
[381800481,1756353062036,-480.0,0.00021072,2]
[381800482,1756353062046,-802.59,0.00021072,2]
[381800483,1756353062056,-480.0,0.00021072,2]
[381800484,1756353062065,-423.40303104,0.00021072,2]
[381800485,1756353062075,-480.0,0.00021072,2]
[381800486,1756353062086,-482.09569288,0.00021072,2]
[381800487,1756353062096,-480.0,0.00021072,2]
[381800488,1756353062107,-480.0,0.00021072,2]
[381800489,1756353062120,-480.0,0.00021072,2]
[381800490,1756353062132,-752.15,0.00021072,2]
[381800491,1756353062142,-480.0,0.00021072,2]
[381800492,1756353062152,-480.0,0.00021072,2]
[381800493,1756353062163,-668.64,0.00021072,2]
[381800494,1756353062174,-480.0,0.00021072,2]
[381800495,1756353062185,-480.0,0.00021072,2]
[381800496,1756353062203,-557.18730523,0.00021072,2]
[381800497,1756353062213,-480.0,0.00021072,2]
[381800498,1756353062223,-480.0,0.00021072,2]
[381800499,1756353062232,-480.0,0.00021072,2]
[381800500,1756353062242,-480.0,0.00021072,2]
[381800501,1756353062252,-536.52,0.00021072,2]
[381800502,1756353062262,-480.0,0.00021072,2]
[381800503,1756353062272,-480.0,0.00021072,2]
[381800504,1756353062282,-182.61862154,0.00021072,2]
[381800505,1756353062293,-480.0,0.00021072,2]
[381800506,1756353062303,-480.0,0.00021072,2]
[381800507,1756353062313,-151.0,0.00021072,2]
[381800508,1756353062324,-480.0,0.00021072,2]
[381800509,1756353062334,-480.0,0.00021072,2]
[381800510,1756353062345,-480.0,0.00021072,2]
[381800511,1756353062356,-1018.64,0.00021072,2]
[381800512,1756353062369,-480.0,0.00021072,2]
[381800513,1756353062379,-480.0,0.00021072,2]
[381800514,1756353062390,-751.9,0.00021072,2]
[381800515,1756353062400,-480.0,0.00021072,2]
[381800516,1756353062411,-480.0,0.00021072,2]
[381800517,1756353062420,-481.08191376,0.00021072,2]
[381800518,1756353062431,-763.46,0.00021072,2]
[381800519,1756353062441,-481.88,0.00021072,2]
[381800520,1756353062451,-481.50195085,0.00021072,2]
[381800521,1756353062460,-151.0,0.00021072,2]
[381800522,1756353062470,-151.0,0.00021072,2]
[381800523,1756353062480,-480.0,0.00021072,2]
[381800524,1756353062490,-480.0,0.00021072,2]
[381800525,1756353062500,-480.0,0.00021072,2]
[381800526,1756353062510,-480.0,0.00021072,2]
[381800527,1756353062520,-151.0,0.00021072,2]
[381800528,1756353062530,-151.0,0.00021072,2]
[381800529,1756353062540,-151.0,0.00021072,2]
[381800530,1756353062550,-151.0,0.00021072,2]
[381800531,1756353062560,-796.92,0.00021072,2]
[381800532,1756353062570,-480.0,0.00021072,2]
[381800533,1756353062580,-1022.96,0.00021072,2]
[381800534,1756353062590,-480.0,0.00021072,2]
[381800535,1756353062601,-922.79,0.00021072,2]
[381800536,1756353062612,-907.94,0.00021072,2]
[381800537,1756353062623,-742.76,0.00021072,2]
[381800538,1756353062633,-480.0,0.00021072,2]
[381800539,1756353062643,-480.0,0.00021072,2]
[381800540,1756353062653,-480.0,0.00021072,2]
[381800541,1756353062664,-480.0,0.00021072,2]
[381800542,1756353062674,-151.0,0.00021072,2]
[381800543,1756353062684,-151.0,0.00021072,2]
[381800544,1756353062697,-210.381789,0.00021072,2]
[381800545,1756353062706,-151.0,0.00021072,2]
[381800546,1756353062716,-210.381789,0.00021072,2]
[381800547,1756353062728,-480.0,0.00021072,2]
[381800548,1756353062737,-151.0,0.00021072,2]
[381800549,1756353062747,-210.381789,0.00021072,2]
[381800550,1756353062758,-210.381789,0.00021072,2]
[381800551,1756353062768,-480.0,0.00021072,2]
[381800552,1756353062778,-482.2789547,0.00021072,2]
[381800553,1756353062787,-480.0,0.00021072,2]
[381800554,1756353062796,-480.0,0.00021072,2]
[381800555,1756353062805,-606.86,0.00021072,2]
[381800556,1756353062814,-641.05,0.00021072,2]
[381800557,1756353062823,-480.0,0.00021072,2]
[381800558,1756353062833,-480.0,0.00021072,2]
[381800559,1756353062842,-844.15,0.00021072,2]
[381800560,1756353062851,-632.17,0.00021072,2]
[381800561,1756353062860,-480.0,0.00021072,2]
[381800562,1756353062869,-480.0,0.00021072,2]
[381800563,1756353062879,-497.63,0.00021072,2]
[381800564,1756353062887,-480.0,0.00021072,2]
[381800565,1756353062897,-953.17,0.00021072,2]
[381800566,1756353062906,-480.0,0.00021072,2]
[381800567,1756353062915,-480.0,0.00021072,2]
[381800568,1756353062925,-599.78,0.00021072,2]
[381800569,1756353062934,-480.0,0.00021072,2]
[381800570,1756353062944,-480.0,0.00021072,2]
[381800571,1756353062954,-480.0,0.00021072,2]
[381800572,1756353062963,-615.47,0.00021072,2]
[381800573,1756353062972,-480.0,0.00021072,2]
[381800574,1756353062981,-517.13,0.00021072,2]
[381800575,1756353062990,-535.3,0.00021072,2]
[381800576,1756353063000,-480.0,0.00021072,2]
[381800577,1756353063009,-480.0,0.00021072,2]
[381800578,1756353063019,-480.0,0.00021072,2]
[381800579,1756353063028,-480.0,0.00021072,2]
[381800580,1756353063038,-482.03593594,0.00021072,2]
[381800581,1756353063048,-580.44,0.00021072,2]
[381800582,1756353063058,-480.0,0.00021072,2]
[381800583,1756353063068,-480.0,0.00021072,2]
[381800584,1756353063077,-480.0,0.00021072,2]
[381800585,1756353063087,-678.39,0.00021072,2]
[381800586,1756353063096,-347.02050352,0.00021072,2]
[381800587,1756353063106,-506.5,0.00021072,2]
[381800588,1756353063116,-480.0,0.00021072,2]
[381800589,1756353063127,-480.0,0.00021072,2]
[381800590,1756353063138,-480.0,0.00021072,2]
[381800591,1756353063148,-480.0,0.00021072,2]
[381800592,1756353063158,-480.0,0.00021072,2]
[381800593,1756353063168,-480.0,0.00021072,2]
[381800594,1756353063177,-480.0,0.00021072,2]
[381800595,1756353063190,-480.0,0.00021072,2]
[381800596,1756353063200,-519.09,0.00021072,2]
[381800597,1756353063210,-592.08,0.00021072,2]
[381800598,1756353063220,-1626.13,0.00021072,2]
[381800599,1756353063230,-480.0,0.00021072,2]
[381800600,1756353063240,-480.0,0.00021072,2]
[381800601,1756353063250,-888.67,0.00021072,2]
[381800602,1756353063259,-480.0,0.00021072,2]
[381800603,1756353063269,-151.0,0.00021072,2]
[381800604,1756353063279,-480.0,0.00021072,2]
[381800605,1756353063289,-1050.99,0.00021072,2]
[381800606,1756353063298,-481.87488358,0.00021072,2]
[381800607,1756353063308,-151.0,0.00021072,2]
[381800608,1756353063318,-151.0,0.00021072,2]
[381800609,1756353063328,-480.0,0.00021072,2]
[381800610,1756353063337,-480.0,0.00021072,2]
[381800611,1756353063347,-610.93,0.00021072,2]
[381800612,1756353063357,-480.0,0.00021072,2]
[381800613,1756353063366,-1445.04,0.00021072,2]
[381800614,1756353063376,-480.0,0.00021072,2]
[381800615,1756353063385,-480.0,0.00021072,2]
[381800616,1756353063547,-1001.33,0.00021072,2]
[381800617,1756353063557,-480.0,0.00021072,2]
[381800618,1756353063567,-481.29028811,0.00021072,2]
[381800619,1756353063576,-747.72,0.00021072,2]
[381800620,1756353063586,-799.21,0.00021072,2]
[381800621,1756353063596,-510.56,0.00021072,2]
[381800622,1756353063606,-480.0,0.00021072,2]
[381800623,1756353063616,-314.36429447,0.00021072,2]
[381800624,1756353063626,-500.0,0.00021072,2]
[381800625,1756353063636,-480.0,0.00021072,2]
[381800626,1756353063645,-480.0,0.00021072,2]
[381800627,1756353063655,-480.0,0.00021072,2]
[381800628,1756353063664,-480.0,0.00021072,2]
[381800629,1756353063674,-480.0,0.00021072,2]
[381800630,1756353063684,-480.0,0.00021072,2]
[381800631,1756353063694,-572.66,0.00021072,2]
[381800632,1756353063704,-555.670728,0.00021072,2]
[381800633,1756353063715,-151.0,0.00021072,2]
[381800634,1756353063724,-555.670728,0.00021072,2]
[381800635,1756353063734,-151.0,0.00021072,2]
[381800636,1756353063745,-555.670728,0.00021072,2]
[381800637,1756353063755,-480.0,0.00021072,2]
[381800638,1756353063765,-618.58,0.00021072,2]
[381800639,1756353063774,-555.670728,0.00021072,2]
[381800640,1756353063784,-151.0,0.00021072,2]
[381800641,1756353063793,-151.0,0.00021072,2]
[381800642,1756353063803,-151.0,0.00021072,2]
[381800643,1756353063813,-151.0,0.00021072,2]
[381800644,1756353063823,-151.0,0.00021072,2]
[381800645,1756353063833,-628.99,0.00021072,2]
[381800646,1756353063843,-151.0,0.00021072,2]
[381800647,1756353063853,-480.0,0.00021072,2]
[381800648,1756353063862,-151.0,0.00021072,2]
[381800649,1756353063871,-151.0,0.00021072,2]
[381800650,1756353063881,-480.0,0.00021072,2]
[381800651,1756353063891,-151.0,0.00021072,2]
[381800652,1756353063900,-159.66397549,0.00021072,2]
[381800653,1756353063910,-368.061483,0.00021072,2]
[381800654,1756353063920,-368.061483,0.00021072,2]
[381800655,1756353063929,-480.0,0.00021072,2]
[381800656,1756353063940,-480.0,0.00021072,2]
[381800657,1756353063950,-480.0,0.00021072,2]
[381800658,1756353063961,-151.0,0.00021072,2]
[381800659,1756353063971,-368.061483,0.00021072,2]
[381800660,1756353063980,-151.0,0.00021072,2]
[381800661,1756353063990,-368.061483,0.00021072,2]
[381800662,1756353064000,-480.0,0.00021072,2]
[381800663,1756353064009,-151.0,0.00021072,2]
[381800664,1756353064019,-480.0,0.00021072,2]
[381800665,1756353064029,-689.95,0.00021072,2]
[381800666,1756353064038,-480.0,0.00021072,2]
[381800667,1756353064047,-480.0,0.00021072,2]
[381800668,1756353064057,-480.0,0.00021072,2]
[381800669,1756353064067,-204.867884,0.00021072,2]
[381800670,1756353064077,-204.867884,0.00021072,2]
[381800671,1756353064086,-722.05,0.00021072,2]
[381800672,1756353064095,-480.0,0.00021072,2]
[381800673,1756353064105,-204.867884,0.00021072,2]
[381800674,1756353064114,-204.867884,0.00021072,2]
[381800675,1756353064124,-754.93,0.00021072,2]
[381800676,1756353064134,-151.0,0.00021072,2]
[381800677,1756353064144,-480.0,0.00021072,2]
[381800678,1756353064154,-480.0,0.00021072,2]
[381800679,1756353064163,-480.0,0.00021072,2]
[381800680,1756353064173,-608.63,0.00021072,2]
[381800681,1756353064183,-151.0,0.00021072,2]
[381800682,1756353064196,-480.0,0.00021072,2]
[381800683,1756353064206,-151.0,0.00021072,2]
[381800684,1756353064216,-480.0,0.00021072,2]
[381800685,1756353064226,-151.0,0.00021072,2]
[381800686,1756353064238,-480.0,0.00021072,2]
[381800687,1756353064248,-480.0,0.00021072,2]
[381800688,1756353064259,-823.24,0.00021072,2]
[381800689,1756353064271,-151.0,0.00021072,2]
[381800690,1756353064281,-480.0,0.00021072,2]
[381800691,1756353064291,-480.0,0.00021072,2]
[381800692,1756353064301,-480.0,0.00021072,2]
[381800693,1756353064311,-480.0,0.00021072,2]
[381800694,1756353064320,-480.0,0.00021072,2]
[381800695,1756353064330,-578.57,0.00021072,2]
[381800696,1756353064340,-480.0,0.00021072,2]
[381800697,1756353064350,-480.0,0.00021072,2]
[381800698,1756353064360,-151.0,0.00021072,2]
[381800699,1756353064370,-557.6,0.00021072,2]
[381800700,1756353064380,-480.0,0.00021072,2]
[381800701,1756353064390,-480.0,0.00021072,2]
[381800702,1756353064400,-480.0,0.00021072,2]
[381800703,1756353064410,-480.0,0.00021072,2]
[381800704,1756353064420,-480.0,0.00021072,2]
[381800705,1756353064429,-480.0,0.00021072,2]
[381800706,1756353064439,-251.945454,0.00021072,2]
[381800707,1756353064449,-480.0,0.00021072,2]
[381800709,1756353064459,-251.945454,0.00021072,2]
[381800710,1756353064468,-480.0,0.00021072,2]
[381800711,1756353064478,-580.46,0.00021072,2]
[381800712,1756353064487,-251.945454,0.00021072,2]
[381800713,1756353064497,-251.945454,0.00021072,2]
[381800714,1756353064507,-480.0,0.00021072,2]
[381800715,1756353064517,-480.0,0.00021072,2]
[381800716,1756353064527,-480.0,0.00021072,2]
[381800717,1756353064538,-674.19,0.00021072,2]
[381800718,1756353064548,-481.57213451,0.00021072,2]
[381800719,1756353064559,-151.0,0.00021072,2]
[381800720,1756353064569,-672.83,0.00021072,2]
[381800721,1756353064579,-151.0,0.00021072,2]
[381800722,1756353064589,-480.0,0.00021072,2]
[381800723,1756353064598,-151.0,0.00021072,2]
[381800724,1756353064609,-996.34,0.00021072,2]
[381800725,1756353064618,-296.55467155,0.00021072,2]
[381800726,1756353064628,-481.57175427,0.00021072,2]
[381800727,1756353064637,-480.0,0.00021072,2]
[381800728,1756353064647,-605.91,0.00021072,2]
[381800729,1756353064656,-480.0,0.00021072,2]
[381800730,1756353064665,-151.0,0.00021072,2]
[381800731,1756353064675,-480.0,0.00021072,2]
[381800732,1756353064684,-480.0,0.00021072,2]
[381800733,1756353064693,-480.0,0.00021072,2]
[381800734,1756353064703,-201.478866,0.00021072,2]
[381800735,1756353064713,-480.0,0.00021072,2]
[381800736,1756353064724,-480.0,0.00021072,2]
[381800737,1756353064734,-201.478866,0.00021072,2]
[381800738,1756353064743,-201.478866,0.00021072,2]
[381800739,1756353064752,-201.478866,0.00021072,2]
[381800740,1756353064762,-769.8,0.00021072,2]
[381800741,1756353064771,-480.0,0.00021072,2]
[381800742,1756353064781,-480.0,0.00021072,2]
[381800743,1756353064791,-480.0,0.00021072,2]
[381800744,1756353064801,-708.47,0.00021072,2]
[381800745,1756353064811,-480.0,0.00021072,2]
[381800746,1756353064820,-299.1107453,0.00021072,2]
[381800747,1756353064830,-480.0,0.00021072,2]
[381800748,1756353064839,-722.0,0.00021072,2]
[381800749,1756353064850,-1168.2,0.00021072,2]
[381800750,1756353064861,-480.0,0.00021072,2]
[381800751,1756353064871,-480.0,0.00021072,2]
[381800752,1756353064881,-480.0,0.00021072,2]
[381800753,1756353064891,-218.012443,0.00021072,2]
[381800754,1756353064900,-151.0,0.00021072,2]
[381800755,1756353064910,-567.19,0.00021072,2]
[381800756,1756353064920,-480.0,0.00021072,2]
[381800757,1756353064930,-218.012443,0.00021072,2]
[381800758,1756353064940,-218.012443,0.00021072,2]
[381800759,1756353064950,-552.79249193,0.00021072,2]
[381800760,1756353064961,-572.41,0.00021072,2]
[381800761,1756353064971,-218.012443,0.00021072,2]
[381800762,1756353064981,-480.0,0.00021072,2]
[381800763,1756353064990,-332.942545,0.00021072,2]
[381800764,1756353064999,-480.0,0.00021072,2]
[381800765,1756353065009,-151.0,0.00021072,2]
[381800766,1756353065018,-493.20062932,0.00021072,2]
[381800767,1756353065028,-332.942545,0.00021072,2]
[381800768,1756353065038,-480.0,0.00021072,2]
[381800769,1756353065047,-151.0,0.00021072,2]
[381800770,1756353065057,-764.61,0.00021072,2]
[381800771,1756353065067,-332.942545,0.00021072,2]
[381800772,1756353065076,-524.98750053,0.00021072,2]
[381800773,1756353065086,-151.0,0.00021072,2]
[381800774,1756353065095,-332.942545,0.00021072,2]
[381800775,1756353065104,-151.0,0.00021072,2]
[381800776,1756353065114,-480.0,0.00021072,2]
[381800777,1756353065124,-480.00000001,0.00021072,2]
[381800778,1756353065134,-296.166392,0.00021072,2]
[381800779,1756353065143,-151.0,0.00021072,2]
[381800780,1756353065153,-532.9,0.00021072,2]
[381800781,1756353065162,-151.0,0.00021072,2]
[381800782,1756353065172,-480.0,0.00021072,2]
[381800783,1756353065182,-151.0,0.00021072,2]
[381800784,1756353065195,-690.1,0.00021072,2]
[381800785,1756353065205,-480.0,0.00021072,2]
[381800786,1756353065215,-212.741212,0.00021072,2]
[381800787,1756353065225,-212.741212,0.00021072,2]
[381800788,1756353065235,-739.71,0.00021072,2]
[381800789,1756353065244,-480.0,0.00021072,2]
[381800790,1756353065254,-212.741212,0.00021072,2]
[381800791,1756353065264,-212.741212,0.00021072,2]
[381800792,1756353065274,-480.0,0.00021072,2]
[381800793,1756353065284,-480.0,0.00021072,2]
[381800794,1756353065293,-1304.98,0.00021072,2]
[381800795,1756353065303,-298.05826681,0.00021072,2]
[381800796,1756353065313,-480.0,0.00021072,2]
[381800797,1756353065323,-151.0,0.00021072,2]
[381800798,1756353065333,-480.0,0.00021072,2]
[381800799,1756353065343,-1000.0,0.00021072,2]
[381800800,1756353065353,-1000.0,0.00021072,2]
[381800801,1756353065363,-1000.0,0.00021072,2]
[381800802,1756353065373,-1000.0,0.00021072,2]
[381800803,1756353065384,-1000.0,0.00021072,2]
[381800804,1756353065394,-1000.0,0.00021072,2]
[381800805,1756353065404,-1000.0,0.00021072,2]
[381800806,1756353065415,-1000.0,0.00021072,2]
[381800807,1756353065425,-1000.0,0.00021072,2]
[381800808,1756353065436,-1000.0,0.00021072,2]
[381800809,1756353065446,-151.0,0.00021072,2]
[381800810,1756353065457,-1000.0,0.00021072,2]
[381800811,1756353065468,-1000.0,0.00021072,2]
[381800812,1756353065479,-151.0,0.00021072,2]
[381800813,1756353065489,-1000.0,0.00021072,2]
[381800814,1756353065500,-1000.0,0.00021072,2]
[381800815,1756353065510,-1000.0,0.00021072,2]
[381800816,1756353065520,-480.0,0.00021072,2]
[381800817,1756353065531,-511.008133,0.00021072,2]
[381800818,1756353065542,-624.08,0.00021072,2]
[381800819,1756353065552,-151.0,0.00021072,2]
[381800820,1756353065562,-480.0,0.00021072,2]
[381800821,1756353065571,-480.0,0.00021072,2]
[381800822,1756353065581,-480.0,0.00021072,2]
[381800823,1756353065591,-562.67,0.00021072,2]
[381800824,1756353065601,-480.0,0.00021072,2]
[381800825,1756353065611,-216.21874,0.00021072,2]
[381800826,1756353065622,-216.21874,0.00021072,2]
[381800827,1756353065631,-216.21874,0.00021072,2]
[381800828,1756353065642,-674.06,0.00021072,2]
[381800829,1756353065652,-216.21874,0.00021072,2]
[381800830,1756353065662,-603.295165,0.00021072,2]
[381800831,1756353065673,-646.74,0.00021072,2]
[381800832,1756353065683,-603.295165,0.00021072,2]
[381800833,1756353065694,-603.295165,0.00021072,2]
[381800834,1756353065706,-480.0,0.00021072,2]
[381800835,1756353065716,-748.74,0.00021072,2]
[381800836,1756353065726,-603.295165,0.00021072,2]
[381800837,1756353065736,-556.12,0.00021072,2]
[381800838,1756353065747,-151.0,0.00021072,2]
[381800839,1756353065757,-965.16,0.00021072,2]
[381800840,1756353065767,-480.0,0.00021072,2]
[381800841,1756353065776,-610.04,0.00021072,2]
[381800842,1756353065786,-151.0,0.00021072,2]
[381800843,1756353065796,-552.0,0.00021072,2]
[381800844,1756353065806,-151.0,0.00021072,2]
[381800845,1756353065817,-480.0,0.00021072,2]
[381800846,1756353065827,-480.0,0.00021072,2]
[381800847,1756353065837,-480.0,0.00021072,2]
[381800848,1756353065846,-151.0,0.00021072,2]
[381800849,1756353065857,-481.14247835,0.00021072,2]
[381800850,1756353065867,-151.0,0.00021072,2]
[381800851,1756353065878,-576.67,0.00021072,2]
[381800852,1756353065888,-480.0,0.00021072,2]
[381800853,1756353065898,-550.81,0.00021072,2]
[381800854,1756353065908,-662.63,0.00021072,2]
[381800855,1756353065918,-1831.595789,0.00021072,2]
[381800856,1756353065928,-1831.595789,0.00021072,2]
[381800857,1756353065939,-151.0,0.00021072,2]
[381800858,1756353065950,-151.0,0.00021072,2]
[381800859,1756353065962,-511.105642,0.00021072,2]
[381800860,1756353065973,-1831.595789,0.00021072,2]